[Event "11th Mumbai Mayors Cup 2018"]
[Site "Mumbai"]
[Date "2018.06.04"]
[Round "3"]
[White "Kothari, Swapnil"]
[Black "Manik, Mikulas"]
[Result "0-1"]
[ECO "D70"]
[WhiteElo "1834"]
[BlackElo "2399"]
[Annotator "NA RC"]
[PlyCount "78"]
[EventDate "2018.??.??"]
[EventType "swiss"]
[EventCountry "IND"]
[SourceTitle "playchess.com"]
[Source "ChessBase"]
[SourceQuality "1"]
[TimeControl "5400+30"]

1. d4 {[%emt 0:00:00]} Nf6 {[%emt 0:00:02]} 2. c4 {[%emt 0:00:00]} g6 {[%emt 0:00:08]} 3. Nf3 {[%emt 0:00:09]} Bg7 {[%emt 0:00:03]} 4. g3 {[%emt 0:00:07]} O-O {[%emt 0:00:04]} 5. Bg2 {[%emt 0:00:09]} c6 {[%emt 0:00:11]} 6. Nc3 {[%emt 0:00:18]} d5 {[%emt 0:00:08]} 7. cxd5 {[%emt 0:00:20]} cxd5 {[%emt 0:00:08]} 8. O-O {[%emt 0:00:40]} Ne4 {[%emt 0:00:03]} 9. Be3 {[%emt 0:04:19] D79: Fianchetto Grünfeld: Symmetrical Variation (6 0-0 c6 7 cxd5 cxd5)} (9. Ng5 Nxc3 10. bxc3 h6 11. Nh3 Nc6 12. Nf4 e6 13. e4 dxe4 14. Bxe4 Bd7 15. d5 exd5 16. Bxd5 Ne5 17. Bxb7 {½-½ (28) Aronian,L (2799)-Anand,V (2783) Saint Louis 2017}) 9... Nxc3 {[%emt 0:01:59]} 10. bxc3 {[%emt 0:00:12]} Nc6 {[%emt 0:00:04]} 11. Qd2 {[%emt 0:09:34]} Bg4 $146 {[%emt 0:04:04]} ({Predecessor:} 11... Bf5 12. Bh6 Rc8 13. Bxg7 Kxg7 14. Nh4 Be6 15. e4 dxe4 16. Bxe4 Qa5 {0-1 (43) Rodriguez Garcia,J (1928)-Gaya Llodra,J (2216) Calvia 2010}) 12. Rab1 {[%emt 0:11:46]} b6 {[%emt 0:01:19]} 13. Bh6 {[%emt 0:09:17]} Bxh6 {[%emt 0:01:17]} 14. Qxh6 {[%emt 0:00:09]} Bxf3 {[%emt 0:00:17]} 15. Bxf3 {[%emt 0:00:10]} e6 {[%emt 0:00:20]} 16. e4 {[%emt 0:01:55]} Qf6 {[%emt 0:00:23]} 17. Kg2 {[%emt 0:10:43]} dxe4 {[%emt 0:00:32]} 18. Bxe4 {[%emt 0:01:08]} Rac8 {[%emt 0:00:00]} 19. Bxc6 {[%emt 0:08:19]} Rxc6 {[%emt 0:00:00]} 20. Rb3 {[%emt 0:00:34]} Rfc8 {[%emt 0:00:00]} 21. Qe3 {[%emt 0:01:51]} Rc4 {[%emt 0:01:24]} 22. h4 {[%emt 0:02:55]} Qf5 {[%emt 0:01:16]} 23. Rc1 {[%emt 0:05:13]} Ra4 {[%emt 0:02:29]} 24. Qe2 {[%emt 0:00:50]} Rxd4 {[%emt 0:00:24]} 25. cxd4 {[%emt 0:01:42]} Rxc1 {[%emt 0:00:32]} 26. Qb5 $19 {[%emt 0:09:59]} (26. Qe5 $17) 26... Qxb5 {[%emt 0:05:04]} 27. Rxb5 {[%emt 0:00:07]} Rc4 {[%emt 0:00:03]} 28. d5 {[%emt 0:00:44]} Rc5 {[%emt 0:04:05]} 29. Rxc5 {[%emt 0:00:11]} bxc5 {[%emt 0:00:01]} 30. dxe6 {[%emt 0:00:06]} fxe6 {[%emt 0:00:06]} 31. Kf3 {[%emt 0:00:05]} Kf7 {[%emt 0:00:13]} 32. Ke4 {[%emt 0:00:08]} Ke7 {[%emt 0:02:00]} 33. Ke5 {[%emt 0:00:15]} h5 {[%emt 0:04:27]} 34. f3 {[%emt 0:00:21]} a5 {[%emt 0:00:46]} 35. a4 {[%emt 0:00:05]} Kf7 {[%emt 0:02:28]} 36. Kf4 {[%emt 0:03:33]} Ke8 {[%emt 0:04:14]} 37. Ke4 {[%emt 0:05:14]} Kd7 {[%emt 0:00:16]} 38. Ke5 {[%emt 0:03:39]} Ke7 {[%emt 0:00:31]} 39. g4 {[%emt 0:00:55]} g5 {[%emt 0:00:01]} 0-1

[Event "11th Mumbai Mayors Cup 2018"]
[Site "Mumbai"]
[Date "2018.06.04"]
[Round "3"]
[White "Kanishk S K"]
[Black "Barath Kalyan M"]
[Result "0-1"]
[ECO "A40"]
[WhiteElo "1784"]
[BlackElo "2079"]
[Annotator "NA RC"]
[PlyCount "86"]
[EventDate "2018.??.??"]
[EventType "swiss"]
[EventCountry "IND"]
[SourceTitle "playchess.com"]
[Source "ChessBase"]
[SourceQuality "1"]
[TimeControl "5400+30"]

1. d4 {[%emt 0:00:00]} Nf6 {[%emt 0:01:11]} 2. c4 {[%emt 0:03:36]} e6 {[%emt 0:00:07]} 3. g3 {[%emt 0:00:08]} Bb4+ {[%emt 0:00:06]} 4. Bd2 {[%emt 0:00:09]} Qe7 {[%emt 0:00:06]} 5. Bg2 {[%emt 0:00:12]} Nc6 {[%emt 0:00:57]} 6. Nf3 {[%emt 0:00:10]} Bxd2+ {[%emt 0:00:40]} 7. Qxd2 {[%emt 0:00:34]} Ne4 {[%emt 0:02:35]} 8. Qc2 {[%emt 0:00:42]} Qb4+ {[%emt 0:00:13]} 9. Nc3 {[%emt 0:00:12] E11: Bogo-Indian} (9. Kf1 d5 10. e3 O-O 11. Nbd2 Nxd2+ 12. Nxd2 Ne7 13. Rc1 Bd7 14. a3 Qd6 15. Ke2 Rac8 16. b4 e5 17. dxe5 Qxe5 18. cxd5 {½-½ (45) Mchedlishvili,M (2604)-Matsenko,S (2534) Izmir 2016}) 9... Nxc3 {[%emt 0:00:25]} 10. bxc3 {[%emt 0:00:17]} Qxc4 {[%emt 0:01:33]} 11. O-O {[%emt 0:00:15] LiveBook: 5 Games} d5 {[%emt 0:00:18]} 12. e3 $146 {[%emt 0:00:37]} ({Predecessor:} 12. Rfb1 Ne7 13. e4 O-O 14. e5 Qc6 15. Ng5 Ng6 16. Bf1 Qe8 {0-1 (65) Hoang,V (2263)-Tran,Q (2070) Ho Chi Minh City 2013}) 12... Ne7 {[%emt 0:00:46]} 13. Ne5 {[%emt 0:02:48]} Qa6 {[%emt 0:00:15]} 14. c4 {[%emt 0:00:13]} (14. Rfc1 $11 {remains equal.}) 14... f6 {[%emt 0:01:26]} 15. Nd3 {[%emt 0:01:04]} Qd6 {[%emt 0:00:10]} (15... Qxc4 $15 16. Qxc4 dxc4) 16. Rfc1 {[%emt 0:01:46]} c6 {[%emt 0:00:05]} 17. c5 {[%emt 0:00:23]} Qc7 {[%emt 0:00:38]} 18. a4 {[%emt 0:01:49]} e5 {[%emt 0:00:28]} 19. a5 {[%emt 0:00:52]} (19. dxe5 $11 {keeps the balance.} fxe5 20. e4) 19... O-O {[%emt 0:00:33]} (19... e4 $17 20. Nb4 h5) 20. a6 {[%emt 0:02:46]} bxa6 {[%emt 0:01:11]} 21. Nb4 {[%emt 0:00:20]} a5 {[%emt 0:00:28]} 22. Nd3 {[%emt 0:01:08]} exd4 {[%emt 0:04:26]} 23. exd4 {[%emt 0:00:09]} Bf5 {[%emt 0:00:31]} 24. Qc3 {[%emt 0:00:10]} Ng6 {[%emt 0:00:16]} 25. Ne1 {[%emt 0:00:59]} h5 {[%emt 0:00:52]} 26. Rxa5 {[%emt 0:03:54]} h4 {[%emt 0:00:24]} 27. Rca1 {[%emt 0:00:56]} Rfe8 {[%emt 0:01:00]} 28. Bf1 {[%emt 0:05:33]} hxg3 {[%emt 0:00:47]} 29. hxg3 {[%emt 0:00:55]} Re7 {[%emt 0:01:16]} 30. Ng2 {[%emt 0:02:44]} Be4 {[%emt 0:02:34]} 31. Bd3 {[%emt 0:03:39]} f5 {[%emt 0:00:46]} 32. Ne3 {[%emt 0:00:25]} Rf7 {[%emt 0:01:55]} 33. Qc2 {[%emt 0:02:22]} f4 {[%emt 0:04:13]} 34. Bxe4 {[%emt 0:00:11]} dxe4 {[%emt 0:00:09]} 35. Qxe4 {[%emt 0:01:39]} fxe3 $19 {[%emt 0:00:08]} 36. Qxg6 {[%emt 0:00:07]} exf2+ {[%emt 0:00:05]} 37. Kf1 {[%emt 0:00:26]} Qd7 {[%emt 0:01:04]} 38. Qh5 {[%emt 0:02:00]} Qxd4 {[%emt 0:00:11]} 39. Qe2 {[%emt 0:01:13]} Qd5 {[%emt 0:00:09]} 40. Qxf2 {[%emt 0:01:20]} Qh1+ {[%emt 0:01:10]} 41. Ke2 {[%emt 0:00:11]} Re8+ {[%emt 0:00:22]} 42. Kd3 {[%emt 0:00:14]} Qd5+ {[%emt 0:01:28]} 43. Qd4 {[%emt 0:00:11]} Rf3+ {[%emt 0:00:05]} 0-1

[Event "11th Mumbai Mayors Cup 2018"]
[Site "Mumbai"]
[Date "2018.06.06"]
[Round "5"]
[White "Chitlange Sakshi"]
[Black "Manik, Mikulas"]
[Result "0-1"]
[ECO "E68"]
[WhiteElo "2163"]
[BlackElo "2399"]
[Annotator "NA RC"]
[PlyCount "90"]
[EventDate "2018.??.??"]
[EventType "swiss"]
[EventCountry "IND"]
[SourceTitle "playchess.com"]
[Source "ChessBase"]
[SourceQuality "1"]
[TimeControl "5400+30"]

1. d4 {[%emt 0:00:00]} Nf6 {[%emt 0:00:03]} 2. c4 {[%emt 0:00:00]} g6 {[%emt 0:00:05]} 3. Nf3 {[%emt 0:00:00]} Bg7 {[%emt 0:00:05]} 4. g3 {[%emt 0:00:00]} O-O {[%emt 0:00:05]} 5. Bg2 {[%emt 0:00:00]} d6 {[%emt 0:00:06]} 6. Nc3 {[%emt 0:00:42]} Nbd7 {[%emt 0:00:02]} 7. O-O {[%emt 0:00:18]} e5 {[%emt 0:00:04]} 8. e4 {[%emt 0:00:24]} exd4 {[%emt 0:00:27]} 9. Nxd4 {[%emt 0:00:08]} Re8 {[%emt 0:00:04]} 10. Re1 {[%emt 0:00:58]} Ng4 {[%emt 0:07:10]} 11. h3 {[%emt 0:15:24] E68: King's Indian: Fianchetto: 6...Nbd7 7 0-0 e5 8 e4} Qf6 {[%emt 0:05:11]} (11... Nge5 12. b3 Nc5 13. Be3 c6 14. Qc2 Ned3 15. Red1 Nb4 16. Qe2 a5 17. a3 Nba6 18. Qc2 Qe7 19. Rab1 f5 20. b4 axb4 21. axb4 Nxe4 22. Nxe4 fxe4 {½-½ (40) Lenic,L (2624)-Naiditsch,A (2657) Bled 2016}) 12. Nf3 $146 {[%emt 0:07:24]} ({Predecessor:} 12. hxg4 Qxd4 13. Qxd4 Bxd4 14. Nd5 Bb6 15. g5 c6 16. Nxb6 axb6 17. b3 Nc5 18. Be3 Bg4 {1-0 (31) Cacho Reigadas,S (2425)-Andreev,E (2330) Rotterdam 1998}) 12... Nge5 {[%emt 0:01:27]} 13. Nd5 {[%emt 0:09:48]} Qd8 {[%emt 0:03:01]} 14. Nxe5 {[%emt 0:05:59]} dxe5 15. Be3 c6 {[%emt 0:01:41]} 16. Nc3 {[%emt 0:01:25]} Qe7 {[%emt 0:00:22]} 17. Qc2 {[%emt 0:01:41]} Nc5 {[%emt 0:04:43]} 18. Rad1 {[%emt 0:05:20]} h5 {[%emt 0:04:00]} 19. h4 {[%emt 0:07:07]} Kh7 {[%emt 0:05:14]} 20. Na4 {[%emt 0:10:05]} Ne6 {[%emt 0:01:31]} 21. Qc1 {[%emt 0:00:43]} Nd4 {[%emt 0:01:37]} 22. Bxd4 {[%emt 0:01:09]} exd4 {[%emt 0:01:12]} 23. c5 {[%emt 0:00:24]} Bg4 {[%emt 0:04:03]} 24. Rd3 {[%emt 0:00:39]} b5 {[%emt 0:04:09]} 25. cxb6 {[%emt 0:01:35]} axb6 {[%emt 0:00:16]} 26. Nxb6 {[%emt 0:00:35]} Rxa2 {[%emt 0:00:22]} 27. Qxc6 {[%emt 0:02:05]} Rxb2 {[%emt 0:10:26]} 28. Nd5 {[%emt 0:01:12]} Qe6 {[%emt 0:01:50]} 29. Qxe6 {[%emt 0:09:05]} fxe6 {[%emt 0:01:37]} 30. f3 {[%emt 0:05:35]} Bxf3 $15 {[%emt 0:10:55]} ({Besser ist} 30... exd5 $17 31. fxg4 hxg4) 31. Bxf3 {[%emt 0:05:58]} exd5 {[%emt 0:00:41]} 32. e5 {[%emt 0:00:29]} Bxe5 {[%emt 0:02:55]} 33. Bxd5 {[%emt 0:00:24]} Rc8 {[%emt 0:00:53]} 34. Rf3 {[%emt 0:05:23]} Bg7 {[%emt 0:01:27]} 35. Rd1 {[%emt 0:02:36]} Rc3 {[%emt 0:07:03]} 36. Rdd3 {[%emt 0:01:12]} Rc5 {[%emt 0:01:13]} 37. Bf7 {[%emt 0:01:02]} Bh6 {[%emt 0:00:52]} 38. Rd1 {[%emt 0:01:12]} Be3+ {[%emt 0:01:47]} 39. Kf1 {[%emt 0:00:04]} Rh2 {[%emt 0:01:02]} 40. Bb3 {[%emt 0:00:35]} Rc3 {[%emt 0:02:28]} 41. Ba4 {[%emt 0:00:29]} Ra3 {[%emt 0:01:34]} 42. Rxd4 {[%emt 0:00:39]} Raa2 {[%emt 0:00:10]} 43. Rd7+ {[%emt 0:01:01]} Kh6 {[%emt 0:00:05]} 44. Ke1 {[%emt 0:00:37]} Rh1+ {[%emt 0:00:05]} 45. Rf1 {[%emt 0:00:04]} Bf2+ {[%emt 0:00:03]} 0-1

[Event "11th Mumbai Mayors Cup 2018"]
[Site "Mumbai"]
[Date "2018.06.06"]
[Round "6"]
[White "Manik, Mikulas"]
[Black "Kiran, Manisha Mohanty"]
[Result "1-0"]
[ECO "B51"]
[WhiteElo "2399"]
[BlackElo "2043"]
[Annotator "NA"]
[PlyCount "57"]
[EventDate "2018.??.??"]
[EventType "swiss"]
[EventCountry "IND"]
[SourceTitle "playchess.com"]
[Source "ChessBase"]
[SourceQuality "1"]
[TimeControl "5400+30"]

1. e4 {[%emt 0:00:00]} c5 {[%emt 0:00:05]} 2. Nf3 {[%emt 0:00:00]} d6 {[%emt 0:00:08]} 3. Bb5+ {[%emt 0:00:00]} Nd7 {[%emt 0:00:05]} 4. c3 {[%emt 0:00:00]} Ngf6 {[%emt 0:03:56]} 5. Qe2 {[%emt 0:00:19]} a6 {[%emt 0:00:59]} 6. Ba4 {[%emt 0:00:05]} b5 {[%emt 0:03:48]} 7. Bc2 {[%emt 0:00:04]} e5 {[%emt 0:02:41]} 8. d4 {[%emt 0:00:37] B51: Sicilian: Moscow Variation (3 Bb5+) without 3...Bd7} Be7 {[%emt 0:00:12]} 9. O-O {[%emt 0:01:14]} Qc7 {[%emt 0:02:25]} (9... O-O 10. Rd1 Qc7 11. h3 Bb7 12. d5 g6 13. Bg5 Rfe8 14. g4 h5 15. Nh2 Nxd5 16. exd5 Bxg5 17. gxh5 Nf6 18. hxg6 fxg6 19. Bxg6 {0-1 (26) Najer,E (2679)-Lu,S (2627) Doha 2016}) 10. a4 {[%emt 0:03:47]} Rb8 {[%emt 0:02:48]} 11. axb5 {[%emt 0:03:50]} axb5 {[%emt 0:00:33]} 12. Na3 {[%emt 0:03:04]} Ba6 $146 {[%emt 0:02:46]} ({Predecessor:} 12... Qb6 13. Rd1 {1-0 (107) Markidis,K (2343)-Bikadi,E (2025) Novi Sad 2015}) 13. dxe5 {[%emt 0:02:37]} Nxe5 {[%emt 0:08:35]} 14. Nxe5 {[%emt 0:00:50]} dxe5 {[%emt 0:06:02]} 15. c4 {[%emt 0:02:24]} b4 {[%emt 0:14:14]} 16. Ba4+ {[%emt 0:00:59]} Nd7 {[%emt 0:00:13]} 17. Rd1 {[%emt 0:03:11]} Rd8 {[%emt 0:00:51]} 18. Nc2 {[%emt 0:01:12]} Bb7 {[%emt 0:02:52]} 19. Qg4 {[%emt 0:07:01]} Bf6 {[%emt 0:01:51]} 20. Ne3 {[%emt 0:08:11]} h5 {[%emt 0:00:18]} 21. Qh3 {[%emt 0:01:22]} Bxe4 {[%emt 0:02:55]} 22. Nd5 {[%emt 0:00:31]} Bxd5 {[%emt 0:00:06]} 23. Rxd5 {[%emt 0:00:11]} Be7 {[%emt 0:14:54]} 24. Be3 {[%emt 0:01:53]} g5 $18 {[%emt 0:03:10]} (24... O-O $142 25. Bxd7 Ra8 26. Rxa8 Rxa8 27. Qxh5 Ra1+ 28. Rd1 g6) 25. Qf5 {[%emt 0:02:02]} Rh6 {[%emt 0:01:05]} 26. Rxd7 {[%emt 0:01:06]} Rxd7 {[%emt 0:00:17]} 27. Bxd7+ {[%emt 0:00:07]} Qxd7 {[%emt 0:00:09]} 28. Ra8+ {[%emt 0:00:10]} Bd8 {[%emt 0:00:17]} 29. Qxd7+ {[%emt 0:00:07]} 1-0

[Event "11th Mumbai Mayors Cup 2018"]
[Site "Mumbai"]
[Date "2018.06.06"]
[Round "6"]
[White "Tran, Minh Thang"]
[Black "Nair, Sanjeev"]
[Result "1-0"]
[ECO "A45"]
[WhiteElo "2383"]
[BlackElo "1915"]
[Annotator "ChessBase"]
[PlyCount "77"]
[EventDate "2018.??.??"]
[EventType "swiss"]
[EventCountry "IND"]
[SourceTitle "playchess.com"]
[Source "ChessBase"]
[SourceQuality "1"]
[TimeControl "5400+30"]

1. d4 {[%emt 0:03:35]} Nf6 {[%emt 0:00:12]} 2. Bf4 {[%emt 0:00:20]} g6 {[%emt 0:00:58]} 3. Nc3 {[%emt 0:00:07]} Bg7 {[%emt 0:02:45]} 4. e4 {[%emt 0:00:11]} d6 {[%emt 0:00:07]} 5. Qe2 {[%emt 0:00:09]} O-O {[%emt 0:05:28]} 6. O-O-O {[%emt 0:00:13]} c6 {[%emt 0:01:59]} 7. Nf3 {[%emt 0:05:35]} Qa5 {[%emt 0:08:05]} 8. Kb1 {[%emt 0:05:27]} Na6 {[%emt 0:18:28]} 9. h3 {[%emt 0:09:59]} Re8 {[%emt 0:11:26]} 10. e5 {[%emt 0:33:39]} Nd5 {[%emt 0:09:48]} 11. Bd2 {[%emt 0:00:20]} dxe5 {[%emt 0:23:25]} 12. dxe5 {[%emt 0:04:17]} Be6 {[%emt 0:01:26]} 13. a3 {[%emt 0:23:16]} Rad8 {[%emt 0:01:13]} 14. Ne4 {[%emt 0:01:28]} Qc7 {[%emt 0:05:47]} 15. Neg5 {[%emt 0:01:00]} Nc5 {[%emt 0:02:39]} 16. Qc4 {[%emt 0:02:13]} Qb6 {[%emt 0:01:27]} 17. Be2 {[%emt 0:05:32]} h6 {[%emt 0:03:10]} 18. Nxe6 {[%emt 0:00:07]} Nxe6 {[%emt 0:00:05]} 19. Rhf1 {[%emt 0:00:14]} Qc7 {[%emt 0:00:36]} 20. Qh4 {[%emt 0:00:37]} g5 {[%emt 0:00:36]} 21. Qg3 {[%emt 0:00:41]} Nef4 {[%emt 0:00:29]} 22. Bc4 {[%emt 0:00:05]} Ng6 {[%emt 0:00:30]} 23. Rfe1 {[%emt 0:00:38]} e6 {[%emt 0:00:21]} 24. h4 {[%emt 0:00:12]} f6 {[%emt 0:00:58]} 25. exf6 {[%emt 0:01:34]} Qxg3 {[%emt 0:00:16]} 26. fxg3 {[%emt 0:00:04]} Bxf6 {[%emt 0:00:20]} 27. hxg5 {[%emt 0:00:06]} hxg5 {[%emt 0:00:08]} 28. Nxg5 {[%emt 0:00:15]} Ne5 {[%emt 0:00:53]} 29. Bb3 {[%emt 0:00:33]} Rd7 {[%emt 0:00:45]} 30. Ne4 {[%emt 0:00:10]} Bg7 {[%emt 0:00:09]} 31. Bg5 {[%emt 0:01:20]} Ng4 {[%emt 0:00:52]} 32. Nc5 {[%emt 0:00:49]} Rf7 {[%emt 0:00:23]} 33. Nxe6 {[%emt 0:00:24]} Nf2 {[%emt 0:00:36]} 34. Nxg7 {[%emt 0:00:17]} Rxe1 {[%emt 0:00:09]} 35. Rxe1 {[%emt 0:00:06]} Kxg7 {[%emt 0:00:05]} 36. Be3 {[%emt 0:00:29]} Ng4 {[%emt 0:01:00]} 37. Bxa7 {[%emt 0:00:05]} Rd7 {[%emt 0:00:53]} 38. Bd4+ {[%emt 0:00:48]} Kg6 {[%emt 0:00:09]} 39. c3 {[%emt 0:00:07]} 1-0

[Event "11th Mumbai Mayors Cup 2018"]
[Site "Mumbai"]
[Date "2018.06.06"]
[Round "6"]
[White "Tilak, Sharad S"]
[Black "Kulkarni, Vikramaditya"]
[Result "0-1"]
[ECO "D31"]
[WhiteElo "2206"]
[BlackElo "2323"]
[Annotator "NA"]
[PlyCount "68"]
[EventDate "2018.??.??"]
[EventType "swiss"]
[EventCountry "IND"]
[SourceTitle "playchess.com"]
[Source "ChessBase"]
[SourceQuality "1"]
[TimeControl "5400+30"]

1. d4 {[%emt 0:12:43]} d5 {[%emt 0:03:28]} 2. c4 {[%emt 0:00:15]} e6 {[%emt 0:00:19]} 3. Nc3 {[%emt 0:00:10]} c6 {[%emt 0:00:21]} 4. cxd5 {[%emt 0:03:12]} exd5 {[%emt 0:00:03]} 5. Qc2 {[%emt 0:00:08]} Bd6 {[%emt 0:02:15]} 6. Nf3 {[%emt 0:02:38]} Ne7 {[%emt 0:00:10]} 7. Bg5 {[%emt 0:01:00]} f6 {[%emt 0:01:05]} 8. Bh4 {[%emt 0:00:02]} Bf5 {[%emt 0:00:26]} 9. Qb3 {[%emt 0:01:02]} Qb6 {[%emt 0:00:12]} 10. Qxb6 {[%emt 0:01:32]} axb6 {[%emt 0:00:03]} 11. Bg3 {[%emt 0:00:05]} Bb4 {[%emt 0:18:26]} 12. Rc1 {[%emt 0:06:46]} b5 {[%emt 0:03:30]} 13. Nd2 {[%emt 0:24:35]} Nd7 {[%emt 0:02:07]} 14. a3 {[%emt 0:00:39]} Bxc3 {[%emt 0:08:39]} 15. Rxc3 {[%emt 0:00:04]} b4 {[%emt 0:00:34]} 16. Rb3 {[%emt 0:01:12]} bxa3 {[%emt 0:00:16]} 17. bxa3 {[%emt 0:00:33]} b5 {[%emt 0:01:10]} 18. f3 {[%emt 0:02:41]} Ra4 {[%emt 0:03:36]} 19. e3 {[%emt 0:02:40]} Nb6 $15 {[%emt 0:08:13]} 20. Bd6 {[%emt 0:04:18]} Kd7 {[%emt 0:23:12]} 21. Bb4 {[%emt 0:03:55]} Nc4 {[%emt 0:03:59]} 22. Rc3 {[%emt 0:00:37]} Nxa3 {[%emt 0:07:50]} 23. Bxa3 {[%emt 0:06:23]} b4 {[%emt 0:00:06]} 24. Bxb4 {[%emt 0:00:01]} Rxb4 {[%emt 0:00:07]} 25. Rb3 {[%emt 0:05:05]} Ra4 {[%emt 0:01:18]} 26. g4 {[%emt 0:02:23]} Ra1+ {[%emt 0:01:15]} 27. Ke2 {[%emt 0:04:03]} Bc2 {[%emt 0:01:41]} 28. Rb7+ {[%emt 0:04:56]} Kd6 {[%emt 0:00:43]} 29. g5 {[%emt 0:00:38]} Nf5 {[%emt 0:01:44]} 30. gxf6 {[%emt 0:04:43]} gxf6 {[%emt 0:00:01]} 31. Kf2 {[%emt 0:00:09]} Re8 {[%emt 0:02:12]} 32. Bg2 {[%emt 0:03:53]} Rxh1 {[%emt 0:02:03]} 33. Bxh1 {[%emt 0:00:01]} Nxe3 {[%emt 0:00:59]} 34. Rxh7 {[%emt 0:01:44]} Bxh7 {[%emt 0:00:07]} 0-1

[Event "11th Mumbai Mayors Cup 2018"]
[Site "Mumbai"]
[Date "2018.06.08"]
[Round "8"]
[White "Raahul V S"]
[Black "Rathnakaran, K.."]
[Result "0-1"]
[ECO "E88"]
[WhiteElo "2233"]
[BlackElo "2385"]
[Annotator "ChessBase"]
[PlyCount "98"]
[EventDate "2018.??.??"]
[EventType "swiss"]
[EventCountry "IND"]
[SourceTitle "playchess.com"]
[Source "ChessBase"]
[SourceQuality "1"]
[TimeControl "5400+30"]

1. c4 {[%emt 0:00:00]} g6 {[%emt 0:00:07]} 2. Nc3 {[%emt 0:00:00]} Bg7 {[%emt 0:00:05]} 3. d4 {[%emt 0:00:00]} d6 {[%emt 0:00:06]} 4. e4 {[%emt 0:00:00]} Nf6 {[%emt 0:00:45]} 5. f3 {[%emt 0:00:20]} O-O {[%emt 0:00:08]} 6. Be3 {[%emt 0:00:03]} e5 {[%emt 0:00:08]} 7. d5 {[%emt 0:00:10]} c6 {[%emt 0:01:30]} 8. Bd3 {[%emt 0:00:16]} cxd5 {[%emt 0:00:12]} 9. cxd5 {[%emt 0:00:02]} a6 {[%emt 0:00:06]} 10. Qd2 {[%emt 0:00:39]} b5 {[%emt 0:00:18]} 11. Nge2 {[%emt 0:00:35]} Nbd7 {[%emt 0:00:19]} 12. b4 {[%emt 0:00:05]} Nb6 {[%emt 0:00:43]} 13. a4 {[%emt 0:01:19]} Nc4 {[%emt 0:04:45]} 14. Bxc4 {[%emt 0:00:05]} bxc4 {[%emt 0:00:03]} 15. Qa2 {[%emt 0:00:13]} Qc7 {[%emt 0:00:19]} 16. b5 {[%emt 0:00:47]} Nd7 {[%emt 0:00:06]} 17. O-O {[%emt 0:01:18]} a5 {[%emt 0:03:41]} 18. Rfc1 {[%emt 0:04:41]} Bb7 {[%emt 0:00:05]} 19. Nd1 {[%emt 0:02:19]} Rfc8 {[%emt 0:00:06]} 20. Nb2 {[%emt 0:00:16]} Nb6 {[%emt 0:03:51]} 21. Rc2 {[%emt 0:01:42]} Bxd5 {[%emt 0:01:41]} 22. exd5 {[%emt 0:00:56]} Nxd5 {[%emt 0:00:04]} 23. Rxc4 {[%emt 0:00:39]} Qb7 {[%emt 0:00:41]} 24. Bd2 {[%emt 0:01:28]} Qa7+ {[%emt 0:02:49]} 25. Kh1 {[%emt 0:01:52]} Ne7 {[%emt 0:00:57]} 26. Rf1 {[%emt 0:06:04]} d5 {[%emt 0:01:42]} 27. Rxc8+ {[%emt 0:00:27]} Rxc8 {[%emt 0:00:06]} 28. Qb3 {[%emt 0:00:10]} Qb6 {[%emt 0:00:34]} 29. Bg5 {[%emt 0:00:13]} Bf6 {[%emt 0:03:26]} 30. Bxf6 {[%emt 0:00:35]} Qxf6 {[%emt 0:00:04]} 31. Nd1 {[%emt 0:02:19]} Qd6 {[%emt 0:09:49]} 32. Ne3 {[%emt 0:02:38]} Kg7 {[%emt 0:23:02]} 33. Nc3 {[%emt 0:01:38]} d4 {[%emt 0:02:17]} 34. Ne4 {[%emt 0:00:14]} Qb6 {[%emt 0:08:50]} 35. Nc4 {[%emt 0:01:13]} Qe6 {[%emt 0:00:08]} 36. Nxa5 {[%emt 0:00:18]} Nd5 {[%emt 0:00:04]} 37. Nc6 {[%emt 0:01:04]} f5 38. Nc5 {[%emt 0:04:34]} Qd6 {[%emt 0:00:47]} 39. Na6 {[%emt 0:00:24]} Ne3 {[%emt 0:00:28]} 40. Re1 {[%emt 0:00:31]} Re8 {[%emt 0:04:41]} 41. f4 {[%emt 0:06:53]} exf4 {[%emt 0:01:26]} 42. Qd3 {[%emt 0:01:03]} Ng4 {[%emt 0:08:09]} 43. Rf1 {[%emt 0:03:47]} Re1 {[%emt 0:00:15]} 44. Kg1 {[%emt 0:10:13]} f3 {[%emt 0:00:28]} 45. g3 {[%emt 0:00:03]} f2+ {[%emt 0:00:34]} 46. Kg2 {[%emt 0:00:01]} Qd5+ {[%emt 0:03:57]} 47. Kh3 {[%emt 0:00:02]} Rxf1 {[%emt 0:00:14]} 48. Qxf1 {[%emt 0:00:02]} f4 {[%emt 0:00:35]} 49. b6 {[%emt 0:04:28]} Ne3 {[%emt 0:03:14]} 0-1